{"text_format":"3","workbook":"xlsx","n_sheets":4,"sheets":["Descrição Geral do Orçamento","Resumo do Orçamento","Despesas Mensais","Dados Adicionais"],"not_rendered":{"charts":1,"images":4,"defined_names":7,"pivot_tables":2},"read":"whole","date_system":"1900"}

{"sheet":"Descrição Geral do Orçamento","index":0,"n_rows":12,"n_cols":8,"rows_kept":12,"merged":[[2,1,2,2],[3,1,3,2],[4,1,4,2]]}
[{"$nulls":7}," "]
[null,"Balanço"]
[null,"Saldo Estimado",null,{"$f":"Receitas_Previstas-Despesas_Previstas","v":{"v":1585,"d":"1,585 €"}},null,"Estimado menos despesas"]
[null,"Saldo Real ",null,{"$f":"Receitas_Reais-Despesas_Reais","v":{"v":1740,"d":"1,740 €"}},null,"Real menos despesas"]
[null,"Diferença",null,{"$f":"D4-D3","v":{"v":155,"d":"155 €"}},null,"Real menos estimado"]
[null,"Rendimentos",{"$nulls":3},"Despesas"]
[null,null,"Estimado","Real",null,"Estimado","Real"]
[null,"Rendimento 1",{"v":6000,"d":"6,000 €"},{"v":5800,"d":"5,800 €"},null,{"$f":"SUM(Tabela_Despesas_Mensais[Custo Estimado])","v":{"v":7915,"d":"7,915 €"}},{"$f":"SUM(Tabela_Despesas_Mensais[Custo Real])","v":{"v":7860,"d":"7,860 €"}}]
[null,"Rendimento 2",{"v":1000,"d":"1,000 €"},{"v":2300,"d":"2,300 €"}]
[null,"Rendimento extra",{"v":2500,"d":"2,500 €"},{"v":1500,"d":"1,500 €"}]
[null,"Rendimentos Totais",{"$f":"SUM(C8:C10)","v":{"v":9500,"d":"9,500 €"}},{"$f":"SUM(D8:D10)","v":{"v":9600,"d":"9,600 €"}}]
[null,"Distribuição de Despesas Reais"]

{"sheet":"Resumo do Orçamento","index":1,"n_rows":41,"n_cols":7,"rows_kept":41}
[null,"Resumo do Orçamento",{"$nulls":4}," "]
[]
[null,"Categories","Custo Estimado ","Custo Real ","Diferença "]
[null,"Crianças",{"v":140,"d":"140 €"},{"v":140,"d":"140 €"},{"v":0,"d":"0 €"}]
[null,"Atividades Extracurriculares",{"v":40,"d":"40 €"},{"v":40,"d":"40 €"},{"v":0,"d":"0 €"}]
[null,"Médicos",null,null,{"v":0,"d":"0 €"}]
[null,"Material Escolar",null,null,{"v":0,"d":"0 €"}]
[null,"Propinas",{"v":100,"d":"100 €"},{"v":100,"d":"100 €"},{"v":0,"d":"0 €"}]
[]
[null,"Lazer",{"v":400,"d":"400 €"},{"v":358,"d":"358 €"},{"v":42,"d":"42 €"}]
[null,"Concertos",{"v":50,"d":"50 €"},{"v":40,"d":"40 €"},{"v":10,"d":"10 €"}]
[null,"Teatro",{"v":200,"d":"200 €"},{"v":150,"d":"150 €"},{"v":50,"d":"50 €"}]
[null,"Filmes",{"v":50,"d":"50 €"},{"v":28,"d":"28 €"},{"v":22,"d":"22 €"}]
[null,"Música (CDs, Transferências, etc.)",{"v":50,"d":"50 €"},{"v":30,"d":"30 €"},{"v":20,"d":"20 €"}]
[null,"Eventos Desportivos",{"v":0,"d":"0 €"},{"v":40,"d":"40 €"},{"v":-40,"d":"-40 €"}]
[null,"Vídeos/DVDs (Compra)",{"v":20,"d":"20 €"},{"v":50,"d":"50 €"},{"v":-30,"d":"-30 €"}]
[null,"Vídeos/DVDs (Aluguer)",{"v":30,"d":"30 €"},{"v":20,"d":"20 €"},{"v":10,"d":"10 €"}]
[]
[null,"Alimentação",{"v":1100,"d":"1,100 €"},{"v":1320,"d":"1,320 €"},{"v":-220,"d":"-220 €"}]
[]
[null,"Presentes e Doações a Instituições de Caridade",{"v":100,"d":"100 €"},{"v":125,"d":"125 €"},{"v":-25,"d":"-25 €"}]
[]
[null,"Casa",{"v":2830,"d":"2,830 €"},{"v":2702,"d":"2,702 €"},{"v":-72,"d":"-72 €"}]
[]
[null,"Seguro",{"v":900,"d":"900 €"},{"v":900,"d":"900 €"},{"v":0,"d":"0 €"}]
[]
[null,"Empréstimos",{"v":200,"d":"200 €"},{"v":200,"d":"200 €"},{"v":0,"d":"0 €"}]
[]
[null,"Cuidados Pessoais",{"v":150,"d":"150 €"},{"v":140,"d":"140 €"},{"v":10,"d":"10 €"}]
[]
[null,"Animais de Estimação",{"v":170,"d":"170 €"},{"v":100,"d":"100 €"},{"v":70,"d":"70 €"}]
[]
[null,"Impostos",{"v":300,"d":"300 €"},{"v":300,"d":"300 €"},{"v":0,"d":"0 €"}]
[]
[null,"Transportes",{"v":1425,"d":"1,425 €"},{"v":1375,"d":"1,375 €"},{"v":50,"d":"50 €"}]
[]
[null,"Poupanças",{"v":200,"d":"200 €"},{"v":200,"d":"200 €"},{"v":0,"d":"0 €"}]
[null,"Conta de Investimento",{"v":200,"d":"200 €"},{"v":200,"d":"200 €"},{"v":0,"d":"0 €"}]
[null,"Conta Poupança Reforma",null,null,{"v":0,"d":"0 €"}]
[]
[null,"Total Geral",{"v":7915,"d":"7,915 €"},{"v":7860,"d":"7,860 €"},{"v":-145,"d":"-145 €"}]

{"sheet":"Despesas Mensais","index":2,"n_rows":61,"n_cols":8,"rows_kept":61}
[{"$nulls":7}," "]
[null,"Descrição","Categoria","Custo Estimado","Custo Real","Diferença","Descrição Geral do Custo Real"]
[null,"Atividades Extracurriculares","Crianças",{"v":40,"d":"40 €"},{"v":40,"d":"40 €"},{"$f":"IF(OR(Tabela_Despesas_Mensais[[#This Row],[Custo Estimado]]=\"\",Tabela_Despesas_Mensais[[#This Row],[Custo Real]]=\"\"),\"\",Tabela_Despesas_Mensais[[#This Row],[Custo Estimado]]-Tabela_Despesas_Mensais[[#This Row],[Custo Real]])","v":{"v":0,"d":"0 €"}},{"$f":"Tabela_Despesas_Mensais[[#This Row],[Custo Real]]","v":40}]
[null,"Médicos","Crianças",null,null,{"$f":"IF(OR(Tabela_Despesas_Mensais[[#This Row],[Custo Estimado]]=\"\",Tabela_Despesas_Mensais[[#This Row],[Custo Real]]=\"\"),\"\",Tabela_Despesas_Mensais[[#This Row],[Custo Estimado]]-Tabela_Despesas_Mensais[[#This Row],[Custo Real]])","v":""},{"$f":"Tabela_Despesas_Mensais[[#This Row],[Custo Real]]","v":0}]
[null,"Material Escolar","Crianças",null,null,{"$f":"IF(OR(Tabela_Despesas_Mensais[[#This Row],[Custo Estimado]]=\"\",Tabela_Despesas_Mensais[[#This Row],[Custo Real]]=\"\"),\"\",Tabela_Despesas_Mensais[[#This Row],[Custo Estimado]]-Tabela_Despesas_Mensais[[#This Row],[Custo Real]])","v":""},{"$f":"Tabela_Despesas_Mensais[[#This Row],[Custo Real]]","v":0}]
[null,"Propinas","Crianças",{"v":100,"d":"100 €"},{"v":100,"d":"100 €"},{"$f":"IF(OR(Tabela_Despesas_Mensais[[#This Row],[Custo Estimado]]=\"\",Tabela_Despesas_Mensais[[#This Row],[Custo Real]]=\"\"),\"\",Tabela_Despesas_Mensais[[#This Row],[Custo Estimado]]-Tabela_Despesas_Mensais[[#This Row],[Custo Real]])","v":{"v":0,"d":"0 €"}},{"$f":"Tabela_Despesas_Mensais[[#This Row],[Custo Real]]","v":100}]
[null,"Concertos","Lazer",{"v":50,"d":"50 €"},{"v":40,"d":"40 €"},{"$f":"IF(OR(Tabela_Despesas_Mensais[[#This Row],[Custo Estimado]]=\"\",Tabela_Despesas_Mensais[[#This Row],[Custo Real]]=\"\"),\"\",Tabela_Despesas_Mensais[[#This Row],[Custo Estimado]]-Tabela_Despesas_Mensais[[#This Row],[Custo Real]])","v":{"v":10,"d":"10 €"}},{"$f":"Tabela_Despesas_Mensais[[#This Row],[Custo Real]]","v":40}]
[null,"Teatro","Lazer",{"v":200,"d":"200 €"},{"v":150,"d":"150 €"},{"$f":"IF(OR(Tabela_Despesas_Mensais[[#This Row],[Custo Estimado]]=\"\",Tabela_Despesas_Mensais[[#This Row],[Custo Real]]=\"\"),\"\",Tabela_Despesas_Mensais[[#This Row],[Custo Estimado]]-Tabela_Despesas_Mensais[[#This Row],[Custo Real]])","v":{"v":50,"d":"50 €"}},{"$f":"Tabela_Despesas_Mensais[[#This Row],[Custo Real]]","v":150}]
[null,"Filmes","Lazer",{"v":50,"d":"50 €"},{"v":28,"d":"28 €"},{"$f":"IF(OR(Tabela_Despesas_Mensais[[#This Row],[Custo Estimado]]=\"\",Tabela_Despesas_Mensais[[#This Row],[Custo Real]]=\"\"),\"\",Tabela_Despesas_Mensais[[#This Row],[Custo Estimado]]-Tabela_Despesas_Mensais[[#This Row],[Custo Real]])","v":{"v":22,"d":"22 €"}},{"$f":"Tabela_Despesas_Mensais[[#This Row],[Custo Real]]","v":28}]
[null,"Música (CDs, Transferências, etc.)","Lazer",{"v":50,"d":"50 €"},{"v":30,"d":"30 €"},{"$f":"IF(OR(Tabela_Despesas_Mensais[[#This Row],[Custo Estimado]]=\"\",Tabela_Despesas_Mensais[[#This Row],[Custo Real]]=\"\"),\"\",Tabela_Despesas_Mensais[[#This Row],[Custo Estimado]]-Tabela_Despesas_Mensais[[#This Row],[Custo Real]])","v":{"v":20,"d":"20 €"}},{"$f":"Tabela_Despesas_Mensais[[#This Row],[Custo Real]]","v":30}]
[null,"Eventos Desportivos","Lazer",{"v":0,"d":"0 €"},{"v":40,"d":"40 €"},{"$f":"IF(OR(Tabela_Despesas_Mensais[[#This Row],[Custo Estimado]]=\"\",Tabela_Despesas_Mensais[[#This Row],[Custo Real]]=\"\"),\"\",Tabela_Despesas_Mensais[[#This Row],[Custo Estimado]]-Tabela_Despesas_Mensais[[#This Row],[Custo Real]])","v":{"v":-40,"d":"-40 €"}},{"$f":"Tabela_Despesas_Mensais[[#This Row],[Custo Real]]","v":40}]
[null,"Vídeos/DVDs (Compra)","Lazer",{"v":20,"d":"20 €"},{"v":50,"d":"50 €"},{"$f":"IF(OR(Tabela_Despesas_Mensais[[#This Row],[Custo Estimado]]=\"\",Tabela_Despesas_Mensais[[#This Row],[Custo Real]]=\"\"),\"\",Tabela_Despesas_Mensais[[#This Row],[Custo Estimado]]-Tabela_Despesas_Mensais[[#This Row],[Custo Real]])","v":{"v":-30,"d":"-30 €"}},{"$f":"Tabela_Despesas_Mensais[[#This Row],[Custo Real]]","v":50}]
[null,"Vídeos/DVDs (Aluguer)","Lazer",{"v":30,"d":"30 €"},{"v":20,"d":"20 €"},{"$f":"IF(OR(Tabela_Despesas_Mensais[[#This Row],[Custo Estimado]]=\"\",Tabela_Despesas_Mensais[[#This Row],[Custo Real]]=\"\"),\"\",Tabela_Despesas_Mensais[[#This Row],[Custo Estimado]]-Tabela_Despesas_Mensais[[#This Row],[Custo Real]])","v":{"v":10,"d":"10 €"}},{"$f":"Tabela_Despesas_Mensais[[#This Row],[Custo Real]]","v":20}]
[null,"Restauração","Alimentação",{"v":1000,"d":"1,000 €"},{"v":1200,"d":"1,200 €"},{"$f":"IF(OR(Tabela_Despesas_Mensais[[#This Row],[Custo Estimado]]=\"\",Tabela_Despesas_Mensais[[#This Row],[Custo Real]]=\"\"),\"\",Tabela_Despesas_Mensais[[#This Row],[Custo Estimado]]-Tabela_Despesas_Mensais[[#This Row],[Custo Real]])","v":{"v":-200,"d":"-200 €"}},{"$f":"Tabela_Despesas_Mensais[[#This Row],[Custo Real]]","v":1200}]
[null,"Supermercado","Alimentação",{"v":100,"d":"100 €"},{"v":120,"d":"120 €"},{"$f":"IF(OR(Tabela_Despesas_Mensais[[#This Row],[Custo Estimado]]=\"\",Tabela_Despesas_Mensais[[#This Row],[Custo Real]]=\"\"),\"\",Tabela_Despesas_Mensais[[#This Row],[Custo Estimado]]-Tabela_Despesas_Mensais[[#This Row],[Custo Real]])","v":{"v":-20,"d":"-20 €"}},{"$f":"Tabela_Despesas_Mensais[[#This Row],[Custo Real]]","v":120}]
[null,"Instituição de Caridade 1","Presentes e Doações a Instituições de Caridade",{"v":75,"d":"75 €"},{"v":100,"d":"100 €"},{"$f":"IF(OR(Tabela_Despesas_Mensais[[#This Row],[Custo Estimado]]=\"\",Tabela_Despesas_Mensais[[#This Row],[Custo Real]]=\"\"),\"\",Tabela_Despesas_Mensais[[#This Row],[Custo Estimado]]-Tabela_Despesas_Mensais[[#This Row],[Custo Real]])","v":{"v":-25,"d":"-25 €"}},{"$f":"Tabela_Despesas_Mensais[[#This Row],[Custo Real]]","v":100}]
[null,"Instituição de Caridade 2","Presentes e Doações a Instituições de Caridade",{"v":25,"d":"25 €"},{"v":25,"d":"25 €"},{"$f":"IF(OR(Tabela_Despesas_Mensais[[#This Row],[Custo Estimado]]=\"\",Tabela_Despesas_Mensais[[#This Row],[Custo Real]]=\"\"),\"\",Tabela_Despesas_Mensais[[#This Row],[Custo Estimado]]-Tabela_Despesas_Mensais[[#This Row],[Custo Real]])","v":{"v":0,"d":"0 €"}},{"$f":"Tabela_Despesas_Mensais[[#This Row],[Custo Real]]","v":25}]
[null,"Presente 1","Presentes e Doações a Instituições de Caridade",null,null,{"$f":"IF(OR(Tabela_Despesas_Mensais[[#This Row],[Custo Estimado]]=\"\",Tabela_Despesas_Mensais[[#This Row],[Custo Real]]=\"\"),\"\",Tabela_Despesas_Mensais[[#This Row],[Custo Estimado]]-Tabela_Despesas_Mensais[[#This Row],[Custo Real]])","v":""},{"$f":"Tabela_Despesas_Mensais[[#This Row],[Custo Real]]","v":0}]
[null,"Presente 2","Presentes e Doações a Instituições de Caridade",null,null,{"$f":"IF(OR(Tabela_Despesas_Mensais[[#This Row],[Custo Estimado]]=\"\",Tabela_Despesas_Mensais[[#This Row],[Custo Real]]=\"\"),\"\",Tabela_Despesas_Mensais[[#This Row],[Custo Estimado]]-Tabela_Despesas_Mensais[[#This Row],[Custo Real]])","v":""},{"$f":"Tabela_Despesas_Mensais[[#This Row],[Custo Real]]","v":0}]
[null,"TV por cabo/satélite","Casa",{"v":100,"d":"100 €"},{"v":100,"d":"100 €"},{"$f":"IF(OR(Tabela_Despesas_Mensais[[#This Row],[Custo Estimado]]=\"\",Tabela_Despesas_Mensais[[#This Row],[Custo Real]]=\"\"),\"\",Tabela_Despesas_Mensais[[#This Row],[Custo Estimado]]-Tabela_Despesas_Mensais[[#This Row],[Custo Real]])","v":{"v":0,"d":"0 €"}},{"$f":"Tabela_Despesas_Mensais[[#This Row],[Custo Real]]","v":100}]
[null,"Eletricidade","Casa",{"v":45,"d":"45 €"},{"v":50,"d":"50 €"},{"$f":"IF(OR(Tabela_Despesas_Mensais[[#This Row],[Custo Estimado]]=\"\",Tabela_Despesas_Mensais[[#This Row],[Custo Real]]=\"\"),\"\",Tabela_Despesas_Mensais[[#This Row],[Custo Estimado]]-Tabela_Despesas_Mensais[[#This Row],[Custo Real]])","v":{"v":-5,"d":"-5 €"}},{"$f":"Tabela_Despesas_Mensais[[#This Row],[Custo Real]]","v":50}]
[null,"Combustíveis","Casa",{"v":300,"d":"300 €"},{"v":400,"d":"400 €"},{"$f":"IF(OR(Tabela_Despesas_Mensais[[#This Row],[Custo Estimado]]=\"\",Tabela_Despesas_Mensais[[#This Row],[Custo Real]]=\"\"),\"\",Tabela_Despesas_Mensais[[#This Row],[Custo Estimado]]-Tabela_Despesas_Mensais[[#This Row],[Custo Real]])","v":{"v":-100,"d":"-100 €"}},{"$f":"Tabela_Despesas_Mensais[[#This Row],[Custo Real]]","v":400}]
[null,"Serviço de Limpeza Doméstica","Casa",{"v":200,"d":"200 €"},null,{"$f":"IF(OR(Tabela_Despesas_Mensais[[#This Row],[Custo Estimado]]=\"\",Tabela_Despesas_Mensais[[#This Row],[Custo Real]]=\"\"),\"\",Tabela_Despesas_Mensais[[#This Row],[Custo Estimado]]-Tabela_Despesas_Mensais[[#This Row],[Custo Real]])","v":""},{"$f":"Tabela_Despesas_Mensais[[#This Row],[Custo Real]]","v":0}]
[null,"Manutenção","Casa",{"v":200,"d":"200 €"},{"v":150,"d":"150 €"},{"$f":"IF(OR(Tabela_Despesas_Mensais[[#This Row],[Custo Estimado]]=\"\",Tabela_Despesas_Mensais[[#This Row],[Custo Real]]=\"\"),\"\",Tabela_Despesas_Mensais[[#This Row],[Custo Estimado]]-Tabela_Despesas_Mensais[[#This Row],[Custo Real]])","v":{"v":50,"d":"50 €"}},{"$f":"Tabela_Despesas_Mensais[[#This Row],[Custo Real]]","v":150}]
[null,"Hipoteca ou Renda","Casa",{"v":1700,"d":"1,700 €"},{"v":1700,"d":"1,700 €"},{"$f":"IF(OR(Tabela_Despesas_Mensais[[#This Row],[Custo Estimado]]=\"\",Tabela_Despesas_Mensais[[#This Row],[Custo Real]]=\"\"),\"\",Tabela_Despesas_Mensais[[#This Row],[Custo Estimado]]-Tabela_Despesas_Mensais[[#This Row],[Custo Real]])","v":{"v":0,"d":"0 €"}},{"$f":"Tabela_Despesas_Mensais[[#This Row],[Custo Real]]","v":1700}]
[null,"Gás Natural/Petróleo","Casa",null,null,{"$f":"IF(OR(Tabela_Despesas_Mensais[[#This Row],[Custo Estimado]]=\"\",Tabela_Despesas_Mensais[[#This Row],[Custo Real]]=\"\"),\"\",Tabela_Despesas_Mensais[[#This Row],[Custo Estimado]]-Tabela_Despesas_Mensais[[#This Row],[Custo Real]])","v":""},{"$f":"Tabela_Despesas_Mensais[[#This Row],[Custo Real]]","v":0}]
[null,"Serviço de Internet","Casa",{"v":100,"d":"100 €"},{"v":100,"d":"100 €"},{"$f":"IF(OR(Tabela_Despesas_Mensais[[#This Row],[Custo Estimado]]=\"\",Tabela_Despesas_Mensais[[#This Row],[Custo Real]]=\"\"),\"\",Tabela_Despesas_Mensais[[#This Row],[Custo Estimado]]-Tabela_Despesas_Mensais[[#This Row],[Custo Real]])","v":{"v":0,"d":"0 €"}},{"$f":"Tabela_Despesas_Mensais[[#This Row],[Custo Real]]","v":100}]
[null,"Telefone (Móvel)","Casa",{"v":60,"d":"60 €"},{"v":60,"d":"60 €"},{"$f":"IF(OR(Tabela_Despesas_Mensais[[#This Row],[Custo Estimado]]=\"\",Tabela_Despesas_Mensais[[#This Row],[Custo Real]]=\"\"),\"\",Tabela_Despesas_Mensais[[#This Row],[Custo Estimado]]-Tabela_Despesas_Mensais[[#This Row],[Custo Real]])","v":{"v":0,"d":"0 €"}},{"$f":"Tabela_Despesas_Mensais[[#This Row],[Custo Real]]","v":60}]
[null,"Telefone (Fixo)","Casa",{"v":35,"d":"35 €"},{"v":39,"d":"39 €"},{"$f":"IF(OR(Tabela_Despesas_Mensais[[#This Row],[Custo Estimado]]=\"\",Tabela_Despesas_Mensais[[#This Row],[Custo Real]]=\"\"),\"\",Tabela_Despesas_Mensais[[#This Row],[Custo Estimado]]-Tabela_Despesas_Mensais[[#This Row],[Custo Real]])","v":{"v":-4,"d":"-4 €"}},{"$f":"Tabela_Despesas_Mensais[[#This Row],[Custo Real]]","v":39}]
[null,"Materiais","Casa",{"v":40,"d":"40 €"},{"v":55,"d":"55 €"},{"$f":"IF(OR(Tabela_Despesas_Mensais[[#This Row],[Custo Estimado]]=\"\",Tabela_Despesas_Mensais[[#This Row],[Custo Real]]=\"\"),\"\",Tabela_Despesas_Mensais[[#This Row],[Custo Estimado]]-Tabela_Despesas_Mensais[[#This Row],[Custo Real]])","v":{"v":-15,"d":"-15 €"}},{"$f":"Tabela_Despesas_Mensais[[#This Row],[Custo Real]]","v":55}]
[null,"Recolha de Lixo e Reciclagem","Casa",{"v":25,"d":"25 €"},{"v":22,"d":"22 €"},{"$f":"IF(OR(Tabela_Despesas_Mensais[[#This Row],[Custo Estimado]]=\"\",Tabela_Despesas_Mensais[[#This Row],[Custo Real]]=\"\"),\"\",Tabela_Despesas_Mensais[[#This Row],[Custo Estimado]]-Tabela_Despesas_Mensais[[#This Row],[Custo Real]])","v":{"v":3,"d":"3 €"}},{"$f":"Tabela_Despesas_Mensais[[#This Row],[Custo Real]]","v":22}]
[null,"Água e Esgotos","Casa",{"v":25,"d":"25 €"},{"v":26,"d":"26 €"},{"$f":"IF(OR(Tabela_Despesas_Mensais[[#This Row],[Custo Estimado]]=\"\",Tabela_Despesas_Mensais[[#This Row],[Custo Real]]=\"\"),\"\",Tabela_Despesas_Mensais[[#This Row],[Custo Estimado]]-Tabela_Despesas_Mensais[[#This Row],[Custo Real]])","v":{"v":-1,"d":"-1 €"}},{"$f":"Tabela_Despesas_Mensais[[#This Row],[Custo Real]]","v":26}]
[null,"Saúde","Seguro",{"v":400,"d":"400 €"},{"v":400,"d":"400 €"},{"$f":"IF(OR(Tabela_Despesas_Mensais[[#This Row],[Custo Estimado]]=\"\",Tabela_Despesas_Mensais[[#This Row],[Custo Real]]=\"\"),\"\",Tabela_Despesas_Mensais[[#This Row],[Custo Estimado]]-Tabela_Despesas_Mensais[[#This Row],[Custo Real]])","v":{"v":0,"d":"0 €"}},{"$f":"Tabela_Despesas_Mensais[[#This Row],[Custo Real]]","v":400}]
[null,"Casa","Seguro",{"v":400,"d":"400 €"},{"v":400,"d":"400 €"},{"$f":"IF(OR(Tabela_Despesas_Mensais[[#This Row],[Custo Estimado]]=\"\",Tabela_Despesas_Mensais[[#This Row],[Custo Real]]=\"\"),\"\",Tabela_Despesas_Mensais[[#This Row],[Custo Estimado]]-Tabela_Despesas_Mensais[[#This Row],[Custo Real]])","v":{"v":0,"d":"0 €"}},{"$f":"Tabela_Despesas_Mensais[[#This Row],[Custo Real]]","v":400}]
[null,"Custos Diários","Seguro",{"v":100,"d":"100 €"},{"v":100,"d":"100 €"},{"$f":"IF(OR(Tabela_Despesas_Mensais[[#This Row],[Custo Estimado]]=\"\",Tabela_Despesas_Mensais[[#This Row],[Custo Real]]=\"\"),\"\",Tabela_Despesas_Mensais[[#This Row],[Custo Estimado]]-Tabela_Despesas_Mensais[[#This Row],[Custo Real]])","v":{"v":0,"d":"0 €"}},{"$f":"Tabela_Despesas_Mensais[[#This Row],[Custo Real]]","v":100}]
[null,"Cartão de Crédito 1","Empréstimos",{"v":200,"d":"200 €"},{"v":200,"d":"200 €"},{"$f":"IF(OR(Tabela_Despesas_Mensais[[#This Row],[Custo Estimado]]=\"\",Tabela_Despesas_Mensais[[#This Row],[Custo Real]]=\"\"),\"\",Tabela_Despesas_Mensais[[#This Row],[Custo Estimado]]-Tabela_Despesas_Mensais[[#This Row],[Custo Real]])","v":{"v":0,"d":"0 €"}},{"$f":"Tabela_Despesas_Mensais[[#This Row],[Custo Real]]","v":200}]
[null,"Cartão de Crédito 2","Empréstimos",null,null,{"$f":"IF(OR(Tabela_Despesas_Mensais[[#This Row],[Custo Estimado]]=\"\",Tabela_Despesas_Mensais[[#This Row],[Custo Real]]=\"\"),\"\",Tabela_Despesas_Mensais[[#This Row],[Custo Estimado]]-Tabela_Despesas_Mensais[[#This Row],[Custo Real]])","v":""},{"$f":"Tabela_Despesas_Mensais[[#This Row],[Custo Real]]","v":0}]
[null,"Cartão de Crédito 3","Empréstimos",null,null,{"$f":"IF(OR(Tabela_Despesas_Mensais[[#This Row],[Custo Estimado]]=\"\",Tabela_Despesas_Mensais[[#This Row],[Custo Real]]=\"\"),\"\",Tabela_Despesas_Mensais[[#This Row],[Custo Estimado]]-Tabela_Despesas_Mensais[[#This Row],[Custo Real]])","v":""},{"$f":"Tabela_Despesas_Mensais[[#This Row],[Custo Real]]","v":0}]
[null,"Custos Pessoais","Empréstimos",null,null,{"$f":"IF(OR(Tabela_Despesas_Mensais[[#This Row],[Custo Estimado]]=\"\",Tabela_Despesas_Mensais[[#This Row],[Custo Real]]=\"\"),\"\",Tabela_Despesas_Mensais[[#This Row],[Custo Estimado]]-Tabela_Despesas_Mensais[[#This Row],[Custo Real]])","v":""},{"$f":"Tabela_Despesas_Mensais[[#This Row],[Custo Real]]","v":0}]
[null,"Despesas Escolares","Empréstimos",null,null,{"$f":"IF(OR(Tabela_Despesas_Mensais[[#This Row],[Custo Estimado]]=\"\",Tabela_Despesas_Mensais[[#This Row],[Custo Real]]=\"\"),\"\",Tabela_Despesas_Mensais[[#This Row],[Custo Estimado]]-Tabela_Despesas_Mensais[[#This Row],[Custo Real]])","v":""},{"$f":"Tabela_Despesas_Mensais[[#This Row],[Custo Real]]","v":0}]
[null,"Vestuário","Cuidados Pessoais",{"v":150,"d":"150 €"},{"v":140,"d":"140 €"},{"$f":"IF(OR(Tabela_Despesas_Mensais[[#This Row],[Custo Estimado]]=\"\",Tabela_Despesas_Mensais[[#This Row],[Custo Real]]=\"\"),\"\",Tabela_Despesas_Mensais[[#This Row],[Custo Estimado]]-Tabela_Despesas_Mensais[[#This Row],[Custo Real]])","v":{"v":10,"d":"10 €"}},{"$f":"Tabela_Despesas_Mensais[[#This Row],[Custo Real]]","v":140}]
[null,"Limpeza a Seco","Cuidados Pessoais",null,null,{"$f":"IF(OR(Tabela_Despesas_Mensais[[#This Row],[Custo Estimado]]=\"\",Tabela_Despesas_Mensais[[#This Row],[Custo Real]]=\"\"),\"\",Tabela_Despesas_Mensais[[#This Row],[Custo Estimado]]-Tabela_Despesas_Mensais[[#This Row],[Custo Real]])","v":""},{"$f":"Tabela_Despesas_Mensais[[#This Row],[Custo Real]]","v":0}]
[null,"Cabeleireiro/Manicure","Cuidados Pessoais",null,null,{"$f":"IF(OR(Tabela_Despesas_Mensais[[#This Row],[Custo Estimado]]=\"\",Tabela_Despesas_Mensais[[#This Row],[Custo Real]]=\"\"),\"\",Tabela_Despesas_Mensais[[#This Row],[Custo Estimado]]-Tabela_Despesas_Mensais[[#This Row],[Custo Real]])","v":""},{"$f":"Tabela_Despesas_Mensais[[#This Row],[Custo Real]]","v":0}]
[null,"Ginásio","Cuidados Pessoais",null,null,{"$f":"IF(OR(Tabela_Despesas_Mensais[[#This Row],[Custo Estimado]]=\"\",Tabela_Despesas_Mensais[[#This Row],[Custo Real]]=\"\"),\"\",Tabela_Despesas_Mensais[[#This Row],[Custo Estimado]]-Tabela_Despesas_Mensais[[#This Row],[Custo Real]])","v":""},{"$f":"Tabela_Despesas_Mensais[[#This Row],[Custo Real]]","v":0}]
[null,"Médicos","Cuidados Pessoais",null,null,{"$f":"IF(OR(Tabela_Despesas_Mensais[[#This Row],[Custo Estimado]]=\"\",Tabela_Despesas_Mensais[[#This Row],[Custo Real]]=\"\"),\"\",Tabela_Despesas_Mensais[[#This Row],[Custo Estimado]]-Tabela_Despesas_Mensais[[#This Row],[Custo Real]])","v":""},{"$f":"Tabela_Despesas_Mensais[[#This Row],[Custo Real]]","v":0}]
[null,"Alimentação","Animais de Estimação",{"v":150,"d":"150 €"},{"v":75,"d":"75 €"},{"$f":"IF(OR(Tabela_Despesas_Mensais[[#This Row],[Custo Estimado]]=\"\",Tabela_Despesas_Mensais[[#This Row],[Custo Real]]=\"\"),\"\",Tabela_Despesas_Mensais[[#This Row],[Custo Estimado]]-Tabela_Despesas_Mensais[[#This Row],[Custo Real]])","v":{"v":75,"d":"75 €"}},{"$f":"Tabela_Despesas_Mensais[[#This Row],[Custo Real]]","v":75}]
[null,"Beleza","Animais de Estimação",{"v":20,"d":"20 €"},{"v":25,"d":"25 €"},{"$f":"IF(OR(Tabela_Despesas_Mensais[[#This Row],[Custo Estimado]]=\"\",Tabela_Despesas_Mensais[[#This Row],[Custo Real]]=\"\"),\"\",Tabela_Despesas_Mensais[[#This Row],[Custo Estimado]]-Tabela_Despesas_Mensais[[#This Row],[Custo Real]])","v":{"v":-5,"d":"-5 €"}},{"$f":"Tabela_Despesas_Mensais[[#This Row],[Custo Real]]","v":25}]
[null,"Médicos","Animais de Estimação",null,null,{"$f":"IF(OR(Tabela_Despesas_Mensais[[#This Row],[Custo Estimado]]=\"\",Tabela_Despesas_Mensais[[#This Row],[Custo Real]]=\"\"),\"\",Tabela_Despesas_Mensais[[#This Row],[Custo Estimado]]-Tabela_Despesas_Mensais[[#This Row],[Custo Real]])","v":""},{"$f":"Tabela_Despesas_Mensais[[#This Row],[Custo Real]]","v":0}]
[null,"Brinquedos","Animais de Estimação",null,null,{"$f":"IF(OR(Tabela_Despesas_Mensais[[#This Row],[Custo Estimado]]=\"\",Tabela_Despesas_Mensais[[#This Row],[Custo Real]]=\"\"),\"\",Tabela_Despesas_Mensais[[#This Row],[Custo Estimado]]-Tabela_Despesas_Mensais[[#This Row],[Custo Real]])","v":""},{"$f":"Tabela_Despesas_Mensais[[#This Row],[Custo Real]]","v":0}]
[null,"Conta de Investimento","Poupanças",{"v":200,"d":"200 €"},{"v":200,"d":"200 €"},{"$f":"IF(OR(Tabela_Despesas_Mensais[[#This Row],[Custo Estimado]]=\"\",Tabela_Despesas_Mensais[[#This Row],[Custo Real]]=\"\"),\"\",Tabela_Despesas_Mensais[[#This Row],[Custo Estimado]]-Tabela_Despesas_Mensais[[#This Row],[Custo Real]])","v":{"v":0,"d":"0 €"}},{"$f":"Tabela_Despesas_Mensais[[#This Row],[Custo Real]]","v":200}]
[null,"Conta Poupança Reforma","Poupanças",null,null,{"$f":"IF(OR(Tabela_Despesas_Mensais[[#This Row],[Custo Estimado]]=\"\",Tabela_Despesas_Mensais[[#This Row],[Custo Real]]=\"\"),\"\",Tabela_Despesas_Mensais[[#This Row],[Custo Estimado]]-Tabela_Despesas_Mensais[[#This Row],[Custo Real]])","v":""},{"$f":"Tabela_Despesas_Mensais[[#This Row],[Custo Real]]","v":0}]
[null,"Federais","Impostos",{"v":300,"d":"300 €"},{"v":300,"d":"300 €"},{"$f":"IF(OR(Tabela_Despesas_Mensais[[#This Row],[Custo Estimado]]=\"\",Tabela_Despesas_Mensais[[#This Row],[Custo Real]]=\"\"),\"\",Tabela_Despesas_Mensais[[#This Row],[Custo Estimado]]-Tabela_Despesas_Mensais[[#This Row],[Custo Real]])","v":{"v":0,"d":"0 €"}},{"$f":"Tabela_Despesas_Mensais[[#This Row],[Custo Real]]","v":300}]
[null,"Locais","Impostos",null,null,{"$f":"IF(OR(Tabela_Despesas_Mensais[[#This Row],[Custo Estimado]]=\"\",Tabela_Despesas_Mensais[[#This Row],[Custo Real]]=\"\"),\"\",Tabela_Despesas_Mensais[[#This Row],[Custo Estimado]]-Tabela_Despesas_Mensais[[#This Row],[Custo Real]])","v":""},{"$f":"Tabela_Despesas_Mensais[[#This Row],[Custo Real]]","v":0}]
[null,"Distritais","Impostos",null,null,{"$f":"IF(OR(Tabela_Despesas_Mensais[[#This Row],[Custo Estimado]]=\"\",Tabela_Despesas_Mensais[[#This Row],[Custo Real]]=\"\"),\"\",Tabela_Despesas_Mensais[[#This Row],[Custo Estimado]]-Tabela_Despesas_Mensais[[#This Row],[Custo Real]])","v":""},{"$f":"Tabela_Despesas_Mensais[[#This Row],[Custo Real]]","v":0}]
[null,"Despesas de Autocarro/Táxi","Transportes",{"v":100,"d":"100 €"},{"v":150,"d":"150 €"},{"$f":"IF(OR(Tabela_Despesas_Mensais[[#This Row],[Custo Estimado]]=\"\",Tabela_Despesas_Mensais[[#This Row],[Custo Real]]=\"\"),\"\",Tabela_Despesas_Mensais[[#This Row],[Custo Estimado]]-Tabela_Despesas_Mensais[[#This Row],[Custo Real]])","v":{"v":-50,"d":"-50 €"}},{"$f":"Tabela_Despesas_Mensais[[#This Row],[Custo Real]]","v":150}]
[null,"Combustível","Transportes",{"v":450,"d":"450 €"},{"v":400,"d":"400 €"},{"$f":"IF(OR(Tabela_Despesas_Mensais[[#This Row],[Custo Estimado]]=\"\",Tabela_Despesas_Mensais[[#This Row],[Custo Real]]=\"\"),\"\",Tabela_Despesas_Mensais[[#This Row],[Custo Estimado]]-Tabela_Despesas_Mensais[[#This Row],[Custo Real]])","v":{"v":50,"d":"50 €"}},{"$f":"Tabela_Despesas_Mensais[[#This Row],[Custo Real]]","v":400}]
[null,"Seguro","Transportes",{"v":300,"d":"300 €"},{"v":300,"d":"300 €"},{"$f":"IF(OR(Tabela_Despesas_Mensais[[#This Row],[Custo Estimado]]=\"\",Tabela_Despesas_Mensais[[#This Row],[Custo Real]]=\"\"),\"\",Tabela_Despesas_Mensais[[#This Row],[Custo Estimado]]-Tabela_Despesas_Mensais[[#This Row],[Custo Real]])","v":{"v":0,"d":"0 €"}},{"$f":"Tabela_Despesas_Mensais[[#This Row],[Custo Real]]","v":300}]
[null,"Licenças ","Transportes",{"v":25,"d":"25 €"},{"v":25,"d":"25 €"},{"$f":"IF(OR(Tabela_Despesas_Mensais[[#This Row],[Custo Estimado]]=\"\",Tabela_Despesas_Mensais[[#This Row],[Custo Real]]=\"\"),\"\",Tabela_Despesas_Mensais[[#This Row],[Custo Estimado]]-Tabela_Despesas_Mensais[[#This Row],[Custo Real]])","v":{"v":0,"d":"0 €"}},{"$f":"Tabela_Despesas_Mensais[[#This Row],[Custo Real]]","v":25}]
[null,"Manutenção","Transportes",{"v":100,"d":"100 €"},{"v":50,"d":"50 €"},{"$f":"IF(OR(Tabela_Despesas_Mensais[[#This Row],[Custo Estimado]]=\"\",Tabela_Despesas_Mensais[[#This Row],[Custo Real]]=\"\"),\"\",Tabela_Despesas_Mensais[[#This Row],[Custo Estimado]]-Tabela_Despesas_Mensais[[#This Row],[Custo Real]])","v":{"v":50,"d":"50 €"}},{"$f":"Tabela_Despesas_Mensais[[#This Row],[Custo Real]]","v":50}]
[null,"Tarifas de Estacionamento","Transportes",null,null,{"$f":"IF(OR(Tabela_Despesas_Mensais[[#This Row],[Custo Estimado]]=\"\",Tabela_Despesas_Mensais[[#This Row],[Custo Real]]=\"\"),\"\",Tabela_Despesas_Mensais[[#This Row],[Custo Estimado]]-Tabela_Despesas_Mensais[[#This Row],[Custo Real]])","v":""},{"$f":"Tabela_Despesas_Mensais[[#This Row],[Custo Real]]","v":0}]
[null,"Pagamento do Veículo","Transportes",{"v":450,"d":"450 €"},{"v":450,"d":"450 €"},{"$f":"IF(OR(Tabela_Despesas_Mensais[[#This Row],[Custo Estimado]]=\"\",Tabela_Despesas_Mensais[[#This Row],[Custo Real]]=\"\"),\"\",Tabela_Despesas_Mensais[[#This Row],[Custo Estimado]]-Tabela_Despesas_Mensais[[#This Row],[Custo Real]])","v":{"v":0,"d":"0 €"}},{"$f":"Tabela_Despesas_Mensais[[#This Row],[Custo Real]]","v":450}]

{"sheet":"Dados Adicionais","index":3,"n_rows":17,"n_cols":6,"rows_kept":17}
[{"$nulls":5}," "]
[null,"Tabela Dinâmica para o Gráfico do Orçamento",null,null,"Lista de Categorias"]
[]
[null,"Categories","Custo",null,"Para adicionar uma categoria, escreva abaixo"]
[null,"Animais de Estimação",{"v":100,"d":"100 €"},null,"Crianças"]
[null,"Presentes e Doações a Instituições de Caridade",{"v":125,"d":"125 €"},null,"Lazer"]
[null,"Crianças",{"v":140,"d":"140 €"},null,"Alimentação"]
[null,"Cuidados Pessoais",{"v":140,"d":"140 €"},null,"Presentes e Doações a Instituições de Caridade"]
[null,"Empréstimos",{"v":200,"d":"200 €"},null,"Casa"]
[null,"Poupanças",{"v":200,"d":"200 €"},null,"Seguro"]
[null,"Impostos",{"v":300,"d":"300 €"},null,"Empréstimos"]
[null,"Lazer",{"v":358,"d":"358 €"},null,"Cuidados Pessoais"]
[null,"Seguro",{"v":900,"d":"900 €"},null,"Animais de Estimação"]
[null,"Alimentação",{"v":1320,"d":"1,320 €"},null,"Poupanças"]
[null,"Transportes",{"v":1375,"d":"1,375 €"},null,"Impostos"]
[null,"Casa",{"v":2702,"d":"2,702 €"},null,"Transportes"]
[null,"Total Geral",{"v":7860,"d":"7,860 €"}]